Cogmind - Beta 13 @@@ ROGUE MODE // 2024.06.14 @ 13:05:09 Player: Some Pennies Result: Destroyed by 7K-66T(R) with Subdweller Shrapnel Launcher Performance ------------- Evolutions (0) 0 Regions Visited (2) 400 Robots Destroyed (28) 140 Value Destroyed (630) 630 Prototype IDs (6) 120 Alien Tech Used (0) 0 Bonus (0) 0 TOTAL SCORE: 1290 Bonus ------- None Cogmind --------- Core Integrity 0/250 Matter 290/300 Energy 220/250 System Corruption 0% Temperature Cool (0) Movement Treading (160) Location -10/Subcaves Parts ------- > --- POWER (1) -------- Ion Engine > --- PROPULSION (2) --- Light Treads Light Treads > --- UTILITY (2) ------ Large Storage Unit Seismic Detector > --- WEAPON (2) ------- Battle Rifle Subdweller Machine Gun > --- INVENTORY (15) --- Ion Engine Subdweller Power Source Disposable Heat Sink Signal Interpreter Improved Terrain Scanner ECM Suite Subdweller Laser Subdweller Laser Subdweller Laser Subdweller Beam Cannon Makeshift Shrapnel Gun Datajack Flamer Hammer Scrap Shield Fragment (46) Peak State ------------ > --- POWER ------------ Ion Engine > --- PROPULSION ------- Light Treads Light Treads > --- UTILITY ---------- Large Storage Unit Seismic Detector > --- WEAPON ----------- Subdweller Laser Subdweller Machine Gun > --- INVENTORY -------- Ion Engine Subdweller Power Source Light Treads Disposable Heat Sink Signal Interpreter Improved Terrain Scanner ECM Suite Subdweller Laser Light Assault Rifle Light Assault Rifle Light Assault Rifle Datajack Hammer Scrap Shield Fragment [Rating: 11] Favorites ----------- Power Ion Engine Engine Ion Engine Propulsion Light Treads Treads Light Treads Hover Unit Backup Propulsion I Utility Large Storage Unit Device Seismic Detector Storage Large Storage Unit Protection Light Armor Plating Weapon Light Assault Rifle Energy Gun Subdweller Laser Energy Cannon Subdweller Beam Cannon Ballistic Gun Light Assault Rifle Ballistic Cannon Light Cannon Impact Weapon Hammer Special Melee Weapon Datajack Build | -11 -10 -10 ------- Run | Yrd Mat Sub Slots Evolved . | . . . Power . | . . . Propulsion . | . . . Utility . | . . . Weapon . | . . . Parts Attached 42 | 8 17 17 Power 3 | 1 1 1 Engine 3 | 1 1 1 Core . | . . . Reactor . | . . . Propulsion 8 | 2 3 3 Treads 8 | 2 3 3 Leg . | . . . Wheel . | . . . Hover . | . . . Flight . | . . . Utility 8 | 3 5 . Device 4 | 2 2 . Storage 2 | 1 1 . Processor . | . . . Hackware . | . . . Protection 2 | . 2 . Artifact . | . . . Weapon 23 | 2 8 13 Energy Gun 2 | . . 2 Energy Cannon 1 | . . 1 Ballistic Gun 12 | 2 3 7 Ballistic Cannon 3 | . 3 . Launcher . | . . . Special Weapon . | . . . Impact Weapon 3 | . 1 2 Slashing Weapon . | . . . Piercing Weapon . | . . . Special Melee Weapon 2 | . 1 1 Unidentified Prototypes . | . . . Parts Lost 8 | . 2 6 Power 1 | . . 1 Propulsion 3 | . . 3 Utility 1 | . 1 . Weapon 3 | . 1 2 Highest Loss Streak 5 | . 2 5 To Critical Strikes . | . . . Average Slot Usage (%) 98 | . 98 99 Engine 13 | . 13 13 Treads 27 | . 27 28 Device 11 | . 8 14 Storage 14 | . 14 14 Protection 2 | . 4 . Energy Gun 3 | . . 7 Ballistic Gun 18 | . 21 16 Ballistic Cannon 2 | . 5 . Impact Weapon 2 | . . 4 Naked Turns . | . . . Heaviest Build 35 | 14 33 35 Greatest Support 40 | 40 40 40 Greatest Overweight (x) 1 | 1 . . Average Overweight (x) . | . . . Largest Inventory Capacity 15 | 8 15 15 Average Capacity 14 | 7 13 15 Most Carried 15 | 5 15 15 Average Carried 12 | 1 11 13 Final Capacity 15 | 8 15 15 Final Carried 15 | 2 13 15 Class Distribution -------------------- 81% | Mutant 18% | Scavenger-Mutant Dominant Class ---------------- Mutant | -10/Materials Mutant | -10/Subcaves Resources | -11 -10 -10 ----------- Run | Yrd Mat Sub Matter Collected 1039 | 161 524 354 Remotely . | . . . Salvage Created 904 | 109 479 316 Parts 52 | 7 32 13 Haulers Intercepted 2 | . 2 . Recyclers Shooed 4 | . 4 . Parts Field Recycled . | . . . Retrieved Matter . | . . . Parts Self-Destructed 7 | . . 7 Prevented . | . . . Kills | -11 -10 -10 ------- Run | Yrd Mat Sub Combat Hostiles Destroyed 19 | . 12 7 Guns 10 | . 5 5 Cannons 7 | . 7 . Classes Destroyed 9 | 2 6 1 Worker 1 | . 1 . Builder 1 | . 1 . Tunneler 2 | 2 . . Hauler 2 | . 2 . Recycler 2 | 1 1 . Watcher 1 | . 1 . Swarmer 5 | . 5 . Grunt 7 | . 7 . Subdweller 7 | . . 7 Best Kill Streak 3 | 2 3 2 Combat Bots Only 3 | . 3 2 Max Kills in Single Turn 2 | 1 1 2 Gunslinging 1 | . . 1 Exploded . | . . . Melee . | . . . Uniques/NPCs Destroyed . | . . . Combat | -11 -10 -10 -------- Run | Yrd Mat Sub Hostile Shots Fired 146 | . 82 64 Missed 41 | . 17 24 Damage Taken 1697 | . 673 1024 Core 266 | . 86 180 Absorbed by Shields . | . . . Regen/Repaired (Parts) 174 | . 174 . Core Remaining (%) 100 | 100 . . Volleys Fired 118 | 11 69 38 Largest 2 | 2 2 2 Hottest 100 | 40 55 100 Shots Fired 230 | 22 137 71 Gun 192 | 22 106 64 Cannon 38 | . 31 7 Launcher . | . . . Special . | . . . Kinetic 217 | 22 137 58 Thermal 13 | . . 13 Explosive . | . . . Electromagnetic . | . . . Robot Hit Streak 9 | 5 8 9 Robot Miss Streak 6 | 2 6 2 Penetration Max . | . . . Secondary Targets 1 | . . 1 Max Gunslinging Chain 1 | . . 1 Shots Hit Robots 143 | 13 74 56 Core Hits 51 | 5 31 15 Critical Kills 1 | . . 1 Critical Parts Destroyed 1 | 1 . . Critical Strikes 3 | 1 1 1 Meltdown 1 | . . 1 Destroy 1 | 1 . . Blast 1 | . 1 . Melee Attacks 22 | . 1 21 Impact 22 | . 1 21 Slashing . | . . . Piercing . | . . . Sneak Attacks . | . . . Combat Hostiles . | . . . Follow-up Attacks . | . . . Damage Inflicted 1837 | 131 1002 704 Guns 1365 | 131 667 567 Cannons 472 | . 335 137 Explosions . | . . . Melee . | . . . Ramming . | . . . Kinetic 1606 | 131 1002 473 Thermal 231 | . . 231 Explosive . | . . . Electromagnetic . | . . . Impact . | . . . Slashing . | . . . Piercing . | . . . Highest Corruption . | . . . Average Corruption . | . . . Corruption Purged . | . . . Corruption Blocked . | . . . Overload Shots . | . . . Overflow Damage . | . . . Projectiles . | . . . Explosions . | . . . Melee . | . . . Knockbacks 5 | . 5 . Impact . | . . . Kinetic 4 | . 4 . Secondary 1 | . 1 . Self-Inflicted Damage . | . . . Shots . | . . . Rammed . | . . . Targets Rammed . | . . . Kicked . | . . . Crushed . | . . . Highest Temperature 140 | . 140 32 Average Temperature 43 | . 46 13 Received Heat Transfer 462 | . 282 180 Siege Activations . | . . . Robots Corrupted . | . . . Combat Hostiles . | . . . Parts Fried . | . . . Impact Corruptions . | . . . Robots Melted 1 | . . 1 Combat Hostiles 1 | . . 1 Parts Melted 3 | . . 3 Heat Transferred 310 | . . 310 Parts Sabotaged . | . . . Parts Stolen . | . . . Parts Stripped . | . . . Power Chain Reactions . | . . . Alert | -11 -10 -10 ------- Run | Yrd Mat Sub Peak Influence 291 | 15 291 . Initial 9 | . 9 . Average 97 | 6 104 . Maximum Alert Level 1 | . 1 . Low Security (%) 91 | 100 90 . Level 1 8 | . 9 . Level 2 . | . . . Level 3 . | . . . Level 4 . | . . . Level 5 . | . . . High Security . | . . . Max Security . | . . . Squads Dispatched 4 | . 4 . Investigation 4 | . 4 . Extermination . | . . . Reinforcement . | . . . Assault . | . . . Garrison . | . . . Intercept . | . . . Searches Triggered . | . . . Construction Impeded . | . . . Haulers Reinforced . | . . . Active Scanning Responses . | . . . Cargo Convoy Interrupts . | . . . Stealth | -11 -10 -10 --------- Run | Yrd Mat Sub Distress Signals 2 | . 2 . Communications Jammed . | . . . Distress Signals . | . . . Times Spotted 31 | . 23 8 Peak Tracking Total 4 | . 4 2 Tactical Retreats . | . . . Traps | -11 -10 -10 ------- Run | Yrd Mat Sub Traps Triggered 2 | . . 2 Indirectly . | . . . Trap Hack Attempts 32 | . 12 20 Triggered . | . . . Disarmed . | . . . Reprogrammed 2 | . 1 1 Reused 1 | . . 1 Traps Extracted . | . . . Installed . | . . . Triggered . | . . . Machines | -11 -10 -10 ---------- Run | Yrd Mat Sub Machines Disabled 1 | . 1 . Max in Single Turn 1 | . 1 . Machines Repaired . | . . . Machines Dismantled . | . . . Machines Sabotaged . | . . . Overloaded Fab Kills . | . . . Hacking | -11 -10 -10 --------- Run | Yrd Mat Sub Machines Accessed 9 | . 9 . Terminals 8 | . 8 . Fabricators . | . . . Repair Stations 1 | . 1 . Recycling Units . | . . . Scanalyzers . | . . . Garrison Access . | . . . Total Hacks 36 | . 36 . Successful 19 | . 19 . Failed 17 | . 17 . Catastrophic 1 | . 1 . Database Lockouts . | . . . Manual 5 | . 5 . Terminals 30 | . 30 . Fabricators . | . . . Repair Stations 6 | . 6 . Recycling Units . | . . . Scanalyzers . | . . . Garrison Access . | . . . Terminal Hacks 14 | . 14 . Robot Analysis 1 | . 1 . Prototype ID Bank 3 | . 3 . Emergency Access Points 3 | . 3 . Locate Traps 4 | . 4 . Hauler Manifests 1 | . 1 . Zone Layout 2 | . 2 . Fabricator Hacks . | . . . Repair Station Hacks 5 | . 5 . Scan Component 2 | . 2 . Repair 2 | . 2 . Refit 1 | . 1 . Recycling Unit Hacks . | . . . Scanalyzer . | . . . Garrison Access Hacks . | . . . Unauthorized Hacks . | . . . Terminals . | . . . Fabricators . | . . . Repair Stations . | . . . Recycling Units . | . . . Scanalyzers . | . . . Garrison Access . | . . . Data Cores Recovered . | . . . Used . | . . . Hacking Detections 9 | . 9 . Full Trace Events 8 | . 8 . Feedback Events . | . . . Feedback Blocked . | . . . Robot Schematics Acquired . | . . . Robots Built . | . . . Authchips . | . . . Time . | . . . Total Robot Build Rating . | . . . Part Schematics Acquired . | . . . Parts Built . | . . . Authchips . | . . . Time . | . . . Total Part Build Rating . | . . . Parts Repaired 2 | . 2 . Time 52 | . 52 . Parts Recycled . | . . . Recycled Matter . | . . . Retrieved Matter . | . . . Retrieved Components . | . . . Parts Scanalyzed . | . . . Part Schematics Acquired . | . . . Parts Damaged . | . . . Bothacking | -11 -10 -10 ------------ Run | Yrd Mat Sub Used RIF Installer . | . . . Robots Hacked . | . . . Non-combat . | . . . Combat . | . . . Robot Hacks Applied . | . . . Relay Couplers Released . | . . . Fabnet Peak Effective % . | . . . Robots Rewired . | . . . Allies Hacked . | . . . Hacks Repelled . | . . . Allies | -11 -10 -10 -------- Run | Yrd Mat Sub Total Allies . | . . . Largest Group . | . . . Highest-Rated Group . | . . . Highest-Rated Ally . | . . . Total Orders . | . . . Ally Attacks . | . . . Total Damage . | . . . Kills . | . . . Allies Corrupted . | . . . Allies Melted . | . . . Intel | -11 -10 -10 ------- Run | Yrd Mat Sub Robot Analysis Total 1 | . 1 . Derelict Logs Recovered 1 | . . 1 Drone Launches . | . . . Drone Recoveries . | . . . Exploration | -11 -10 -10 ------------- Run | Yrd Mat Sub Turns Passed 3088 | 117 1481 1490 Spaces Moved 1498 | 51 715 732 Core 19 | 19 . . Treads 1479 | 32 715 732 Legs . | . . . Wheels . | . . . Hover . | . . . Flight . | . . . Fastest Speed 50 | 50 160 160 Average Speed 158 | 120 160 160 Slowest Speed 160 | 160 160 160 Overloaded Moves . | . . . Propulsion Burnouts . | . . . Robots Hopped . | . . . Cave-ins Triggered . | . . . Exploration Rate (%) 48 | 5 97 42 Regions Visited 2 Branch Regions 1 Pre-discovered Areas . | . . . Known Exits Taken . | . . . Unknown Exits Taken 2 | 1 1 . Scrap Searched 1 | . . 1 Spaces Dug 8 | . 1 7 Terrain Destroyed 10 | . 1 9 Melee 8 | . 1 7 Projectile 2 | . . 2 AOE . | . . . Terrain Rammed . | . . . Walls Destroyed . | . . . Machines Disabled . | . . . Actions | -11 -10 -10 --------- Run | Yrd Mat Sub Total 1953 | 85 920 948 Wait 190 | 9 82 99 Move 1496 | 50 714 732 Hop . | . . . Pick Up 39 | 7 18 14 Fast Attach 3 | 2 1 . Attach 19 | 5 4 10 Detach . | . . . Swap 20 | 1 12 7 Drop 14 | . 7 7 Fire 118 | 11 69 38 Melee 22 | . 1 21 Ram . | . . . Kick . | . . . Crush . | . . . Escape Stasis . | . . . Rewire . | . . . Trap 32 | . 12 20 Miscellaneous . | . . . Route ------- -11/Scrapyard -10/Materials (discovered 5 exits: [*Mat x3] / [*Min] / [*Sub]) -10/Subcaves (discovered 1 exit: [*Mat]) History --------- Turn | Location | Event 8 | -11/Scrapyard | Discovered new exit (range 15) 118 | -11/Scrapyard | Entered Materials 313 | -10/Materials | Build established: Mutant 332 | -10/Materials | Discovered new exit (range 5) 729 | -10/Materials | Discovered new exit (range 6) 1068 | -10/Materials | Discovered new exit (range 16) 1149 | -10/Materials | Repaired Lgt. Treads 1176 | -10/Materials | Repaired Lgt. Treads 1258 | -10/Materials | Discovered new exit (range 14) 1390 | -10/Materials | Discovered new exit (range 15) 1479 | -10/Materials | Build established: Scavenger-Mutant 1599 | -10/Materials | Entered Subcaves 1754 | -10/Subcaves | Core integrity fell below 50% 1842 | -10/Subcaves | Lost 5 parts (1p2n2w) 2041 | -10/Subcaves | Build established: Mutant 2150 | -10/Subcaves | Learned 2 Materials zone layouts 2183 | -10/Subcaves | Core integrity fell below 20% 2354 | -10/Subcaves | Shifting Twisted Machinery released Mak. Shrapnel Gun 2477 | -10/Subcaves | Shifting Twisted Machinery released Sub. Laser 2549 | -10/Subcaves | Shifting Twisted Machinery released Battle Rifle 2553 | -10/Subcaves | Shifting Twisted Machinery released Sub. Power Source 2569 | -10/Subcaves | Discovered new exit (range 11) 3074 | -10/Subcaves | Disturbed a concealed Subdweller 3089 | -10/Subcaves | Destroyed by 7K-66T(R) with Subdweller Shrapnel Launcher Last Messages --------------- 02560_ Dropped Lgt. Assault Rifle. 02569_ EXIT=FOUND 02573_ Subatomizers dissect the Lgt. Assault Rifle. 02635_ Subatomizers dissect the Lgt. Assault Rifle, destroying it. 02812_ FB-C16(u) builds Twisted Machinery. 02899_ Acquired 6 matter. 02900_ Acquired 7 matter. 02904_ Acquired 6 matter. 02916_ Acquired 12 matter. 02970_ Searching scrap... 02970_ Found Sub. Beam Cannon. 02970_ Found Flamer. 02970_ Found 25 Matter. 02971_ Acquired 7 matter. 02973_ Dropped Lgt. Assault Rifle. 02974_ Acquired Sub. Beam Cannon. 02978_ Dropped Lgt. Assault Rifle. 02978_ Acquired Flamer. Map ----- +----------------------------------------------------+ | "" ### < ### ##????????###### ## # | | "" #?# " ####??#######???## ####### | | "" ##?##"" #???## ##### ##?????# | | ### ##???## ## #???# ####??## | | ??##??????## ##?###??# ## #### | | ???????????# ##???????## ## | | ???????????## #?????????####### ### | | ????????????### ##??????????######## ##?# | | ??????????????###??????????## #########?## | | ???????????????????????????# ##???????# | | ????????????????????????????# #?????# # | | ????????????????????????????## #?????## ##### | | ???????????????????????###?### ##??????###????? | | ???????????????????????# ### ##?????????????? | | ???????????????????????# ##??????###???? | | ???????????????????????# ##?????# ##### | | ???????????????????????##### ##????# | | ???????????????????????????## ##???# | | ????????????????????????????#### ###?# | | ???????????????????????????????## #?# | | ?????????????????????????????##?## #### | | ?????????????????????????????"#??# ### | | ???????????????????????????##&#??## | | ??????????????????????????## ????## ##### | | ????????????????????????###" #?????## #####???? | | ????????????????????????#@## ####???## ##???###?? | | ????????????????????????# < "# #????####????# #? | | ????????????????????????# R ##??????????## # | | ????????????????????????# #??????????# | | ????????????????????????# #??????????# | | ??????????????????????### #####??????# | | ??????????????????????# #??????## | | ??????????????????????# #??####?## | | ??????????????????????### ## #??# ####### | | ????????????????????????## ## #??# ##### | | ?????????????????????????###### #?## # # | | ??????????????????????????????# ### | | ??????????????????????????????### | | ????????????????????????????????## # #### | | ?????????????????????????????????# #### | | ?????????????????????????????????##### #?# | | ?????????????????????????????????????## ## | | ?????????????????????????????????????## #### | | ????????????????????????????????????## #??? | | ???????????????????????????????????## ##?? | | ??????????????????????????????????## ## ### | | ??????????????????????????????????# ##### | | ??????????????????????????????????# #???## | | ??????????????????????????????????# #????# # | | ?????????????????????????????????## #????# | +----------------------------------------------------+ Best States ------------- Heat Dissipation 25 Energy Generation 10 Energy Capacity 250 Matter Stores 300 Matter Capacity 300 Sight Range 16 Terrain Scan Range 16 Terrain Scan Density 10 Armor Coverage 150 Evasion (%) 50 Recoil Reduction 2 Item Schematics ----------------- None Robot Schematics ------------------ None Fabricated ------------ Nothing Alien Tech Used ----------------- None Achievements -------------- None Challenges ------------ None Game ------ Seed InsulationOmegaCapacitor Manual? 0 Play Time 00:21:46 Cumulative 153.9 hours Start 2024.06.14 @ 12:21:26 End 2024.06.14 @ 13:05:09 Sessions 3 Manual Loads 0 Difficulty Rogue Special Mode None Game No. 133 Rogue 128 Adventurer 5 Explorer 0 Win Type - Total 3 Types 2/0/1/0/0/0/0/0/0 Lore% 63 Gallery% 75 Achievement% 53 Wizard Run 0 Options --------- Layout 2 ASCII 0 Keyboard 0 Movement Mouse Keybinds 0 Fullscreen 2 Font 24/Smallcaps Map View 50x44 Zoom Use 0% Tactical HUD 1 Map Filters NONE Filters NONE Steam 1 RUN: 1d7a2553-4eaf-4200-a6c5-742eea1c7212